Workbook

Sheet Kezdés
B1: A SABLON ISMERTETÉSE
B2: A Havi főiskolai költségvetés munkalapot használva nyomon követheti a bevételét, kiadásait és pénzforgalmát.
B3: Adja meg a havi bevételét és kiadásait az összes bevétele és kiadása kiszámításához.
B4: A sablon automatikusan kiszámítja a Pénzforgalom, és frissíti a Pénzforgalom diagramot.
B5: A csúszkát választva jelenítse meg a bevétel, a kiadások és a pénzforgalom hónapos és éves diagramjait.
B6: Megjegyzés:
B7: A munkalap A oszlopában további útmutatást olvashat. Ez a szöveg szándékosan van elrejtve. Ha törölni szeretné a szöveget, jelölje ki az A oszlopot, majd nyomja le a DELETE billentyűt. Ha láthatóvá szeretné tenni a szöveget, jelölje ki az A oszlopot, majd módosítsa a betűszínt.

Sheet Havi főiskolai költségvetés
A1: Ezen a munkalapon havi főiskolai költségvetés hozhat létre. A jobbra lévő cellában és a B1 cellában szerepel a munkalap címe. Ennek az oszlopnak a celláiban a munkalap használatát megkönnyítő útmutatás olvasható. A következő utasítás az A4 cellában található. | B1: Havi főiskolai költségvetés
A4: A jobbra lévő cellában a Bevétel, az E4 cellában a Kiadások, az M4 cellában pedig a Pénzforgalom felirat látható. | B4: =chart_calcs!$D$6 -> év bevétel: | E4: =chart_calcs!$D$7 -> év kiadás: | M4: =chart_calcs!$D$8 -> év pénzforgalom:
A5: A sablon automatikusan kiszámítja a bevételt a jobbra lévő cellában, a kiadásokat az E5 cellában és a pénzforgalmat az M5 cellában. | B5: =" "&chart_calcs!$F$6 -> 1 225 Ft | E5: =" "&chart_calcs!$F$7 -> 1 056 Ft | M5: =" "&chart_calcs!$F$8 -> 169 Ft
A6: A jobbra lévő cellában a bevételösszegzést és az E6 cellában a kiadásösszegzést megjelenítő gyűrűdiagramot, valamint az M6 cellában a pozitív és negatív pénzforgalmat megjelenítő sávdiagramot automatikusan frissíti a sablon. A következő utasítás az A17 cellában található. | B6: Ebben a cellában látható a kijelölt hónap vagy év bevételének összegzését megjelenítő gyűrűdiagram. | E6: Ebben a cellában látható a kijelölt hónap vagy év kiadásainak összegzését megjelenítő gyűrűdiagram. | M6: Ebben a cellában látható a kijelölt hónap vagy év pozitív vagy negatív pénzforgalmát megjelenítő sávdiagram.
B16: Ebben a cellában látható a kijelölt hónap vagy év pénzforgalmát megjelenítő vonaldiagram.
A17: A jobbra lévő cellában a pénzforgalom vonaldiagramja látható. A következő utasítás az A21 cellában található.
A21: A jobb oldalon lévő csúszkát választva jelenítse meg a havi vagy éves bevétel, a kiadások és a pénzforgalom adatait és diagramjait. A következő utasítás az A25 cellában található. | B21: Ebben a cellában egy csúszka található.
A25: A jobbra lévő cellában választhatja ki a hónapot. Jelenítse meg a lehetőségeket az ALT+LE billentyűkombinációval, majd a LE és az ENTER billentyűvel kiválaszthatja a megfelelőt. | B25: JAN
A26: A kijelölt időszak automatikusan frissül a P26 cellában. | P26: =KijelöltIdőszak -> 00
A27: Ebben a sorban látható a Havi készpénz a kiadások után felirat a jobbra lévő cellában, a hónapok a C27–N27 cellákban, az év az O27 cellában a növekedés százalékos értéke a P27 cellában. | B27: Havi készpénz a kiadások után | C27: =ElsőHónap -> 00 | D27: =KövetkezőHónap ->  | E27: =KövetkezőHónap ->  | F27: =KövetkezőHónap ->  | O27: ÉV | P27: % NÖV.
A28: A jobbra lévő cellában látható a Pénzforgalom felirat. A sablon automatikusan kiszámítja az egyes hónapok pénzforgalom a C28–N28 cellákban, az éves összeget az O28 cellában és a növekedés százalékos értékét a P28 cellában. A sablon automatikusan frissíti az értékgörbét a Q28 cellában. | B28: Pénzforgalom | C28: =C37-C72 -> 169 | D28: 69 | E28: 192 | F28: 199 | G28: 204 | H28: -771 | I28: 124 | J28: 154 | K28: -721 | L28: 109 | M28: 34 | N28: -61 | O28: =SUM(C28:N28) -> -299 | P28: =INDEX($C28:$O28,,KijelöltIdőszakOszlop)/INDEX($C$37:$O$37,,KijelöltIdőszakOszlop) -> 13.8%
A29: A jobbra lévő cellában látható a Göngyölített pénzforgalom felirat. A sablon automatikusan kiszámítja az egyes hónapok göngyölített pénzforgalom a C29–N29 cellákban, az éves összeget az O29 cellában és a növekedés százalékos értékét a P29 cellában. A sablon automatikusan frissíti az értékgörbét a Q29 cellában. A következő utasítás az A31 cellában található. | B29: Göngyölített pénzforgalom | C29: =SUM($C$28:C$28) -> 169 | D29: =SUM($C$28:D$28) -> 238 | E29: =SUM($C$28:E$28) -> 430 | F29: =SUM($C$28:F$28) -> 629 | G29: =SUM($C$28:G$28) -> 833 | H29: =SUM($C$28:H$28) -> 62 | I29: =SUM($C$28:I$28) -> 186 | J29: =SUM($C$28:J$28) -> 340 | K29: =SUM($C$28:K$28) -> -381 | L29: =SUM($C$28:L$28) -> -272 | M29: =SUM($C$28:M$28) -> -238 | N29: =SUM($C$28:N$28) -> -299
A31: A Havi bevétel felirat látható a jobbra lévő cellában, a hónapok a C31–N31 cellákban, az év az O31 cellában és a növekedés százalékos értéke a P31 cellában. A havi bevétel tételeit a B32–B36 cellákban adhatja meg, a havi összegeket pedig a C32–N36 cellákban. A sablon automatikusan kiszámítja az éves bevételt az O32–O36 cellákban és a növekedés százalékos értékét a P32–P36 cellákban. A következő utasítás az A37 cellában található. | B31: HAVI BEVÉTEL | C31: =ElsőHónap -> 00 | D31: =KövetkezőHónap ->  | O31: ÉV | P31: % NÖV.
B32: Pénzügyi támogatás (ösztöndíjak, tanulmányi ösztöndíjak, hitelek), amelyeket Ön kapott | C32: 0 | D32: 0 | E32: 750 | F32: 750 | G32: 750 | H32: 750 | I32: 750 | J32: 750 | K32: 750 | L32: 750 | M32: 750 | N32: 750 | O32: =SUM(C32:N32) -> 7,500 | P32: =INDEX($C32:$O32,,KijelöltIdőszakOszlop)/INDEX($C$37:$O$37,,KijelöltIdőszakOszlop) -> 0.0%
B33: Munkaviszonyból származó nettó fizetés | C33: 450 | D33: 450 | E33: 450 | F33: 450 | G33: 450 | H33: 450 | I33: 450 | J33: 450 | K33: 550 | L33: 350 | M33: 350 | N33: 350 | O33: 5,200 | P33: =INDEX($C33:$O33,,KijelöltIdőszakOszlop)/INDEX($C$37:$O$37,,KijelöltIdőszakOszlop) -> 36.7%
B34: Családi pénzügyi segítség | C34: 200 | D34: 200 | E34: 1,000 | F34: 350 | G34: 350 | H34: 350 | I34: 350 | J34: 350 | K34: 350 | L34: 350 | M34: 350 | N34: 350 | O34: 4,550 | P34: =INDEX($C34:$O34,,KijelöltIdőszakOszlop)/INDEX($C$37:$O$37,,KijelöltIdőszakOszlop) -> 16.3%
B35: Kivétek megtakarításból | C35: 500 | D35: 350 | E35: 150 | F35: 0 | G35: 0 | H35: 0 | I35: 0 | J35: 0 | K35: 0 | L35: 0 | M35: 0 | N35: 0 | O35: 1,000 | P35: =INDEX($C35:$O35,,KijelöltIdőszakOszlop)/INDEX($C$37:$O$37,,KijelöltIdőszakOszlop) -> 40.8%
B36: Egyéb (gyerektartás, állami támogatás, ajándékok stb.) | C36: 75 | D36: 75 | E36: 75 | F36: 75 | G36: 75 | H36: 75 | I36: 75 | J36: 75 | K36: 75 | L36: 75 | M36: 75 | N36: 75 | O36: 900 | P36: =INDEX($C36:$O36,,KijelöltIdőszakOszlop)/INDEX($C$37:$O$37,,KijelöltIdőszakOszlop) -> 6.1%
A37: A jobbra lévő cellában az Összes bevételét felirat látható. A sablon automatikusan kiszámítja az egyes hónapok összes bevételét a C37–N37 cellákban, az éves bevételt az O37 cellában és a növekedés százalékos értékét a P37 cellában. A sablon automatikusan frissíti az értékgörbét a Q37 cellában. A következő utasítás az A39 cellában található. | B37: ÖSSZES BEVÉTEL | C37: =SUM(C32:C36) -> 1,225 | D37: 1,075 | E37: 2,425 | F37: 1,625 | G37: 1,625 | H37: 1,625 | I37: 1,625 | J37: 1,625 | K37: 1,725 | L37: 1,525 | M37: 1,525 | N37: 1,525 | O37: 19,150 | P37: =INDEX($C37:$O37,,KijelöltIdőszakOszlop)/INDEX($C$37:$O$37,,KijelöltIdőszakOszlop) -> 100.0%
A39: A Havi kiadás felirat látható a jobbra lévő cellában, a hónapok a C39–N39 cellákban, az év az O39 cellában és a növekedés százalékos értéke a P39 cellában. | B39: HAVI KIADÁS | C39: =ElsőHónap -> 00 | D39: =KövetkezőHónap ->  | O39: ÉV | P39: % NÖV.
A40: A jobbra lévő cellában adhatja meg vagy módosíthatja a kiadási tételeket és a C40–N43 cellákban pedig a havi összegeket. A sablon automatikusan kiszámítja az éves összeget az O40–O43 cellákban és a növekedés százalékos értékét a P40–P43 cellákban. A sablon automatikusan frissíti az értékgörbét a Q40 cellában. A következő utasítás az A45 cellában található. | B40: Szállás és ellátás | C40: =SUM(C41:C43) -> 565 | D40: 565 | E40: 565 | F40: 565 | G40: 565 | H40: 565 | I40: 565 | J40: 565 | K40: 565 | L40: 565 | M40: 565 | N40: 565 | O40: =SUM(C40:N40) -> 6,780 | P40: =INDEX($C40:$O40,,KijelöltIdőszakOszlop)/INDEX($C$72:$O$72,,KijelöltIdőszakOszlop) -> 53.5%
C41: 315 | D41: 315 | E41: 315 | F41: 315 | G41: 315 | H41: 315 | I41: 315 | J41: 315 | K41: 315 | L41: 315 | M41: 315 | N41: 315 | O41: =SUM(C41:N41) -> 3,780 | P41: =INDEX($C41:$O41,,KijelöltIdőszakOszlop)/INDEX($C$72:$O$72,,KijelöltIdőszakOszlop) -> 29.8%
C42: 200 | D42: 200 | E42: 200 | F42: 200 | G42: 200 | H42: 200 | I42: 200 | J42: 200 | K42: 200 | L42: 200 | M42: 200 | N42: 200 | O42: =SUM(C42:N42) -> 2,400 | P42: =INDEX($C42:$O42,,KijelöltIdőszakOszlop)/INDEX($C$72:$O$72,,KijelöltIdőszakOszlop) -> 18.9%
C43: 50 | D43: 50 | E43: 50 | F43: 50 | G43: 50 | H43: 50 | I43: 50 | J43: 50 | K43: 50 | L43: 50 | M43: 50 | N43: 50 | O43: =SUM(C43:N43) -> 600 | P43: =INDEX($C43:$O43,,KijelöltIdőszakOszlop)/INDEX($C$72:$O$72,,KijelöltIdőszakOszlop) -> 4.7%
A45: A jobbra lévő cellában adhatja meg vagy módosíthatja a kiadási tételeket és a C46–N48 cellákban pedig a havi összegeket. A sablon automatikusan kiszámítja az éves összeget az O46–O48 cellákban és a növekedés százalékos értékét a P46–P48 cellákban. A sablon automatikusan frissíti az értékgörbét a Q46 cellában. A következő utasítás az A50 cellában található. | B45: Tandíj és díjak | C45: =SUM(C46:C47) -> 0 | D45: 0 | E45: 750 | F45: 0 | G45: 0 | H45: 650 | I45: 0 | J45: 0 | K45: 650 | L45: 0 | M45: 0 | N45: 0 | O45: =SUM(C45:N45) -> 2,050 | P45: =INDEX($C45:$O45,,KijelöltIdőszakOszlop)/INDEX($C$72:$O$72,,KijelöltIdőszakOszlop) -> 0.0%
C46: 0 | D46: 0 | E46: 500 | F46: 0 | G46: 0 | H46: 500 | I46: 0 | J46: 0 | K46: 500 | L46: 0 | M46: 0 | N46: 0 | O46: =SUM(C46:N46) -> 1,500 | P46: =INDEX($C46:$O46,,KijelöltIdőszakOszlop)/INDEX($C$72:$O$72,,KijelöltIdőszakOszlop) -> 0.0%
C47: 0 | D47: 0 | E47: 250 | F47: 0 | G47: 0 | H47: 150 | I47: 0 | J47: 0 | K47: 150 | L47: 0 | M47: 0 | N47: 0 | O47: =SUM(C47:N47) -> 550 | P47: =INDEX($C47:$O47,,KijelöltIdőszakOszlop)/INDEX($C$72:$O$72,,KijelöltIdőszakOszlop) -> 0.0%
A49: A jobbra lévő cellában adhatja meg vagy módosíthatja a kiadási tételeket és a C49–N51 cellákban pedig a havi összegeket. A sablon automatikusan kiszámítja az éves összeget az O49–O51 cellákban és a növekedés százalékos értékét a P49–P51 cellákban. A sablon automatikusan frissíti az értékgörbét a Q49 cellában. A következő utasítás az A53 cellában található. | B49: Könyvek és kellékek | C49: =SUM(C50:C51) -> 0 | D49: 0 | E49: 325 | F49: 20 | G49: 20 | H49: 325 | I49: 10 | J49: 10 | K49: 400 | L49: 15 | M49: 15 | N49: 15 | O49: =SUM(C49:N49) -> 1,155 | P49: =INDEX($C49:$O49,,KijelöltIdőszakOszlop)/INDEX($C$72:$O$72,,KijelöltIdőszakOszlop) -> 0.0%
C50: 0 | D50: 0 | E50: 225 | F50: 0 | G50: 0 | H50: 275 | I50: 0 | J50: 0 | K50: 325 | L50: 0 | M50: 0 | N50: 0 | O50: =SUM(C50:N50) -> 825 | P50: =INDEX($C50:$O50,,KijelöltIdőszakOszlop)/INDEX($C$72:$O$72,,KijelöltIdőszakOszlop) -> 0.0%
C51: 0 | D51: 0 | E51: 100 | F51: 20 | G51: 20 | H51: 50 | I51: 10 | J51: 10 | K51: 75 | L51: 15 | M51: 15 | N51: 15 | O51: =SUM(C51:N51) -> 330 | P51: =INDEX($C51:$O51,,KijelöltIdőszakOszlop)/INDEX($C$72:$O$72,,KijelöltIdőszakOszlop) -> 0.0%
A53: A jobbra lévő cellában adhatja meg vagy módosíthatja a kiadási tételeket és a C54–N58 cellákban pedig a havi összegeket. A sablon automatikusan kiszámítja az éves összeget az O54–O58 cellákban és a növekedés százalékos értékét a P54–P58 cellákban. A sablon automatikusan frissíti az értékgörbét a Q54 cellában. A következő utasítás az A60 cellában található. | B53: Közlekedés | C53: =SUM(C54:C57) -> 224 | D53: 174 | E53: 174 | F53: 219 | G53: 174 | H53: 174 | I53: 274 | J53: 219 | K53: 174 | L53: 174 | M53: 224 | N53: 269 | O53: =SUM(C53:N53) -> 2,473 | P53: =INDEX($C53:$O53,,KijelöltIdőszakOszlop)/INDEX($C$72:$O$72,,KijelöltIdőszakOszlop) -> 21.2%
C54: 30 | D54: 30 | E54: 30 | F54: 75 | G54: 30 | H54: 30 | I54: 30 | J54: 75 | K54: 30 | L54: 30 | M54: 30 | N54: 75 | O54: =SUM(C54:N54) -> 495 | P54: =INDEX($C54:$O54,,KijelöltIdőszakOszlop)/INDEX($C$72:$O$72,,KijelöltIdőszakOszlop) -> 2.8%
C55: 129 | D55: 129 | E55: 129 | F55: 129 | G55: 129 | H55: 129 | I55: 129 | J55: 129 | K55: 129 | L55: 129 | M55: 129 | N55: 129 | O55: =SUM(C55:N55) -> 1,548 | P55: =INDEX($C55:$O55,,KijelöltIdőszakOszlop)/INDEX($C$72:$O$72,,KijelöltIdőszakOszlop) -> 12.2%
C56: 15 | D56: 15 | E56: 15 | F56: 15 | G56: 15 | H56: 15 | I56: 15 | J56: 15 | K56: 15 | L56: 15 | M56: 15 | N56: 15 | O56: =SUM(C56:N56) -> 180 | P56: =INDEX($C56:$O56,,KijelöltIdőszakOszlop)/INDEX($C$72:$O$72,,KijelöltIdőszakOszlop) -> 1.4%
C57: 50 | D57: 0 | E57: 0 | F57: 0 | G57: 0 | H57: 0 | I57: 100 | J57: 0 | K57: 0 | L57: 0 | M57: 50 | N57: 50 | O57: =SUM(C57:N57) -> 250 | P57: =INDEX($C57:$O57,,KijelöltIdőszakOszlop)/INDEX($C$72:$O$72,,KijelöltIdőszakOszlop) -> 4.7%
A59: A jobbra lévő cellában adhatja meg vagy módosíthatja a kiadási tételeket és a 59–N65 cellákban pedig a havi összegeket. A sablon automatikusan kiszámítja az éves összeget az O59–O65 cellákban és a növekedés százalékos értékét a P59–P65 cellákban. A sablon automatikusan frissíti az értékgörbét a Q59 cellában. A következő utasítás az A67 cellában található. | B59: Választható | C59: =SUM(C60:C65) -> 69 | D59: 69 | E59: 169 | F59: 369 | G59: 419 | H59: 444 | I59: 419 | J59: 419 | K59: 394 | L59: 394 | M59: 419 | N59: 469 | O59: =SUM(C59:N59) -> 4,053 | P59: =INDEX($C59:$O59,,KijelöltIdőszakOszlop)/INDEX($C$72:$O$72,,KijelöltIdőszakOszlop) -> 6.5%
C60: 0 | D60: 0 | E60: 0 | F60: 50 | G60: 100 | H60: 100 | I60: 100 | J60: 100 | K60: 75 | L60: 75 | M60: 100 | N60: 100 | O60: 800 | P60: =INDEX($C60:$O60,,KijelöltIdőszakOszlop)/INDEX($C$72:$O$72,,KijelöltIdőszakOszlop) -> 0.0%
C61: 69 | D61: 69 | E61: 69 | F61: 69 | G61: 69 | H61: 69 | I61: 69 | J61: 69 | K61: 69 | L61: 69 | M61: 69 | N61: 69 | O61: 828 | P61: =INDEX($C61:$O61,,KijelöltIdőszakOszlop)/INDEX($C$72:$O$72,,KijelöltIdőszakOszlop) -> 6.5%
C62: 0 | D62: 0 | E62: 0 | F62: 0 | G62: 0 | H62: 25 | I62: 0 | J62: 0 | K62: 0 | L62: 0 | M62: 0 | N62: 50 | O62: 75 | P62: =INDEX($C62:$O62,,KijelöltIdőszakOszlop)/INDEX($C$72:$O$72,,KijelöltIdőszakOszlop) -> 0.0%
C63: 0 | D63: 0 | E63: 100 | F63: 100 | G63: 100 | H63: 100 | I63: 100 | J63: 100 | K63: 100 | L63: 100 | M63: 100 | N63: 100 | O63: 1,000 | P63: =INDEX($C63:$O63,,KijelöltIdőszakOszlop)/INDEX($C$72:$O$72,,KijelöltIdőszakOszlop) -> 0.0%
C64: 0 | D64: 0 | E64: 0 | F64: 50 | G64: 50 | H64: 50 | I64: 50 | J64: 50 | K64: 50 | L64: 50 | M64: 50 | N64: 50 | O64: 450 | P64: =INDEX($C64:$O64,,KijelöltIdőszakOszlop)/INDEX($C$72:$O$72,,KijelöltIdőszakOszlop) -> 0.0%
C65: 0 | D65: 0 | E65: 0 | F65: 100 | G65: 100 | H65: 100 | I65: 100 | J65: 100 | K65: 100 | L65: 100 | M65: 100 | N65: 100 | O65: 900 | P65: =INDEX($C65:$O65,,KijelöltIdőszakOszlop)/INDEX($C$72:$O$72,,KijelöltIdőszakOszlop) -> 0.0%
A67: A jobbra lévő cellában adhatja meg vagy módosíthatja a kiadási tételeket és a C67–N70 cellákban pedig a havi összegeket. A sablon automatikusan kiszámítja az éves összeget az O67–O70 cellákban és a növekedés százalékos értékét a P67–P70 cellákban. A sablon automatikusan frissíti az értékgörbét a Q67 cellában. A következő utasítás az A72 cellában található. | B67: Egyéb kiadások | C67: =SUM(C68:C70) -> 198 | D67: =SUM(D68:D70) -> 198 | E67: 250 | F67: 253 | G67: 243 | H67: 238 | I67: 233 | J67: 258 | K67: 263 | L67: 268 | M67: 268 | N67: 268 | O67: =SUM(C67:N67) -> 2,938 | P67: =INDEX($C67:$O67,,KijelöltIdőszakOszlop)/INDEX($C$72:$O$72,,KijelöltIdőszakOszlop) -> 18.8%
C68: 123 | D68: 123 | E68: 123 | F68: 123 | G68: 123 | H68: 123 | I68: 123 | J68: 123 | K68: 123 | L68: 123 | M68: 123 | N68: 123 | O68: =SUM(C68:N68) -> 1,476 | P68: =INDEX($C68:$O68,,KijelöltIdőszakOszlop)/INDEX($C$72:$O$72,,KijelöltIdőszakOszlop) -> 11.6%
C69: 0 | D69: 0 | E69: 52 | F69: 55 | G69: 45 | H69: 40 | I69: 35 | J69: 60 | K69: 65 | L69: 70 | M69: 70 | N69: 70 | O69: =SUM(C69:N69) -> 562 | P69: =INDEX($C69:$O69,,KijelöltIdőszakOszlop)/INDEX($C$72:$O$72,,KijelöltIdőszakOszlop) -> 0.0%
C70: 75 | D70: 75 | E70: 75 | F70: 75 | G70: 75 | H70: 75 | I70: 75 | J70: 75 | K70: 75 | L70: 75 | M70: 75 | N70: 75 | O70: =SUM(C70:N70) -> 900 | P70: =INDEX($C70:$O70,,KijelöltIdőszakOszlop)/INDEX($C$72:$O$72,,KijelöltIdőszakOszlop) -> 7.1%
A72: A jobbra lévő cellában látható az Összes kiadás felirat. A sablon automatikusan kiszámítja az egyes hónapok összes kiadás a C72–N72 cellákban, az éves kiadást az O72 cellában és a növekedés százalékos értékét a P72 cellában. A sablon automatikusan frissíti az értékgörbét a Q72 cellában. | B72: ÖSSZES KIADÁS | C72: =SUM(C40,C45,C49,C53,C59,C67) -> 1,056 | D72: 1,006 | E72: 2,233 | F72: 1,426 | G72: 1,421 | H72: 2,396 | I72: 1,501 | J72: 1,471 | K72: 2,446 | L72: 1,416 | M72: 1,491 | N72: 1,586 | O72: =SUM(C72:N72) -> 19,449 | P72: =INDEX($C72:$O72,,KijelöltIdőszakOszlop)/INDEX($C$72:$O$72,,KijelöltIdőszakOszlop) -> 100.0%

Sheet chart_calcs (hidden)
A1: ***Ennek a lapnak REJTVE kell maradnia***
D3: =IFERROR(LOWER(TEXT(VALUE(KijelöltIdőszak&" 1"),"hhhh")),"év") -> év
D5: Dinamikus diagram címei
D6: =D3&" bevétel:" -> év bevétel: | F6: =TEXT(INDEX('Havi főiskolai költségvetés'!$C$37:$O$37,,KijelöltIdőszakOszlop),"# ### Ft") -> 1 225 Ft
D7: =D3&" kiadás:" -> év kiadás: | F7: =TEXT(INDEX('Havi főiskolai költségvetés'!$C$72:$O$72,,KijelöltIdőszakOszlop),"# ### Ft") -> 1 056 Ft
D8: =D3&" pénzforgalom:" -> év pénzforgalom: | E8: =INDEX('Havi főiskolai költségvetés'!C28:O28,Görgetősávérték) -> 169 | F8: =TEXT(E8,"# ### Ft") -> 169 Ft
D12: =LOWER('Havi főiskolai költségvetés'!C27) -> 00 | E12: =LOWER('Havi főiskolai költségvetés'!D27) ->  | F12: =LOWER('Havi főiskolai költségvetés'!E27) ->  | G12: =LOWER('Havi főiskolai költségvetés'!F27) ->  | H12: =LOWER('Havi főiskolai költségvetés'!G27) ->  | I12: =LOWER('Havi főiskolai költségvetés'!H27) ->  | J12: =LOWER('Havi főiskolai költségvetés'!I27) ->  | K12: =LOWER('Havi főiskolai költségvetés'!J27) ->  | L12: =LOWER('Havi főiskolai költségvetés'!K27) ->  | M12: =LOWER('Havi főiskolai költségvetés'!L27) ->  | N12: =LOWER('Havi főiskolai költségvetés'!M27) ->  | O12: =LOWER('Havi főiskolai költségvetés'!N27) ->  | P12: =LOWER('Havi főiskolai költségvetés'!O27) -> év
C13: Görgetősávérték: | D13: 1
C14: Készpénzforgalom-diagram: | D14: =IF(KijelöltIdőszak='Havi főiskolai költségvetés'!C$31,IF('Havi főiskolai költségvetés'!$C$28:$O$28>=0,'Havi főiskolai költségvetés'!$C$28:$O$28,NA()),NA()) -> 69 | E14: =IF(KijelöltIdőszak='Havi főiskolai költségvetés'!D$31,IF('Havi főiskolai költségvetés'!$C$28:$O$28>=0,'Havi főiskolai költségvetés'!$C$28:$O$28,NA()),NA()) ->  | F14: =IF(KijelöltIdőszak='Havi főiskolai költségvetés'!E$31,IF('Havi főiskolai költségvetés'!$C$28:$O$28>=0,'Havi főiskolai költségvetés'!$C$28:$O$28,NA()),NA()) ->  | G14: =IF(KijelöltIdőszak='Havi főiskolai költségvetés'!F$31,IF('Havi főiskolai költségvetés'!$C$28:$O$28>=0,'Havi főiskolai költségvetés'!$C$28:$O$28,NA()),NA()) ->  | H14: =IF(KijelöltIdőszak='Havi főiskolai költségvetés'!G$31,IF('Havi főiskolai költségvetés'!$C$28:$O$28>=0,'Havi főiskolai költségvetés'!$C$28:$O$28,NA()),NA()) ->  | I14: =IF(KijelöltIdőszak='Havi főiskolai költségvetés'!H$31,IF('Havi főiskolai költségvetés'!$C$28:$O$28>=0,'Havi főiskolai költségvetés'!$C$28:$O$28,NA()),NA()) ->  | J14: =IF(KijelöltIdőszak='Havi főiskolai költségvetés'!I$31,IF('Havi főiskolai költségvetés'!$C$28:$O$28>=0,'Havi főiskolai költségvetés'!$C$28:$O$28,NA()),NA()) ->  | K14: =IF(KijelöltIdőszak='Havi főiskolai költségvetés'!J$31,IF('Havi főiskolai költségvetés'!$C$28:$O$28>=0,'Havi főiskolai költségvetés'!$C$28:$O$28,NA()),NA()) ->  | L14: =IF(KijelöltIdőszak='Havi főiskolai költségvetés'!K$31,IF('Havi főiskolai költségvetés'!$C$28:$O$28>=0,'Havi főiskolai költségvetés'!$C$28:$O$28,NA()),NA()) ->  | M14: =IF(KijelöltIdőszak='Havi főiskolai költségvetés'!L$31,IF('Havi főiskolai költségvetés'!$C$28:$O$28>=0,'Havi főiskolai költségvetés'!$C$28:$O$28,NA()),NA()) ->  | N14: =IF(KijelöltIdőszak='Havi főiskolai költségvetés'!M$31,IF('Havi főiskolai költségvetés'!$C$28:$O$28>=0,'Havi főiskolai költségvetés'!$C$28:$O$28,NA()),NA()) ->  | O14: =IF(KijelöltIdőszak='Havi főiskolai költségvetés'!N$31,IF('Havi főiskolai költségvetés'!$C$28:$O$28>=0,'Havi főiskolai költségvetés'!$C$28:$O$28,NA()),NA()) ->  | P14: =IF(KijelöltIdőszak='Havi főiskolai költségvetés'!O$31,IF('Havi főiskolai költségvetés'!$C$28:$O$28>=0,'Havi főiskolai költségvetés'!$C$28:$O$28,NA()),NA()) -> 
C15: Göngyölített: | D15: =IF(KijelöltIdőszak='Havi főiskolai költségvetés'!C$31,IF('Havi főiskolai költségvetés'!$C$28:$O$28<0,'Havi főiskolai költségvetés'!$C$28:$O$28,NA()),NA()) ->  | E15: =IF(KijelöltIdőszak='Havi főiskolai költségvetés'!D$31,IF('Havi főiskolai költségvetés'!$C$28:$O$28<0,'Havi főiskolai költségvetés'!$C$28:$O$28,NA()),NA()) ->  | F15: =IF(KijelöltIdőszak='Havi főiskolai költségvetés'!E$31,IF('Havi főiskolai költségvetés'!$C$28:$O$28<0,'Havi főiskolai költségvetés'!$C$28:$O$28,NA()),NA()) ->  | G15: =IF(KijelöltIdőszak='Havi főiskolai költségvetés'!F$31,IF('Havi főiskolai költségvetés'!$C$28:$O$28<0,'Havi főiskolai költségvetés'!$C$28:$O$28,NA()),NA()) ->  | H15: =IF(KijelöltIdőszak='Havi főiskolai költségvetés'!G$31,IF('Havi főiskolai költségvetés'!$C$28:$O$28<0,'Havi főiskolai költségvetés'!$C$28:$O$28,NA()),NA()) ->  | I15: =IF(KijelöltIdőszak='Havi főiskolai költségvetés'!H$31,IF('Havi főiskolai költségvetés'!$C$28:$O$28<0,'Havi főiskolai költségvetés'!$C$28:$O$28,NA()),NA()) ->  | J15: =IF(KijelöltIdőszak='Havi főiskolai költségvetés'!I$31,IF('Havi főiskolai költségvetés'!$C$28:$O$28<0,'Havi főiskolai költségvetés'!$C$28:$O$28,NA()),NA()) ->  | K15: =IF(KijelöltIdőszak='Havi főiskolai költségvetés'!J$31,IF('Havi főiskolai költségvetés'!$C$28:$O$28<0,'Havi főiskolai költségvetés'!$C$28:$O$28,NA()),NA()) ->  | L15: =IF(KijelöltIdőszak='Havi főiskolai költségvetés'!K$31,IF('Havi főiskolai költségvetés'!$C$28:$O$28<0,'Havi főiskolai költségvetés'!$C$28:$O$28,NA()),NA()) ->  | M15: =IF(KijelöltIdőszak='Havi főiskolai költségvetés'!L$31,IF('Havi főiskolai költségvetés'!$C$28:$O$28<0,'Havi főiskolai költségvetés'!$C$28:$O$28,NA()),NA()) ->  | N15: =IF(KijelöltIdőszak='Havi főiskolai költségvetés'!M$31,IF('Havi főiskolai költségvetés'!$C$28:$O$28<0,'Havi főiskolai költségvetés'!$C$28:$O$28,NA()),NA()) ->  | O15: =IF(KijelöltIdőszak='Havi főiskolai költségvetés'!N$31,IF('Havi főiskolai költségvetés'!$C$28:$O$28<0,'Havi főiskolai költségvetés'!$C$28:$O$28,NA()),NA()) ->  | P15: =IF(KijelöltIdőszak='Havi főiskolai költségvetés'!O$31,IF('Havi főiskolai költségvetés'!$C$28:$O$28<0,'Havi főiskolai költségvetés'!$C$28:$O$28,NA()),NA()) -> 
C18: BEVÉTEL DIAGRAM ADATAI
C19: Pénzügyi támogatás (ösztöndíjak, tanulmányi ösztöndíjak, hitelek), amelyeket Ön kapott | D19: ='Havi főiskolai költségvetés'!P32 -> 0.0%
C20: Munkaviszonyból származó nettó fizetés | D20: ='Havi főiskolai költségvetés'!P33 -> 36.7%
C21: Családi pénzügyi segítség | D21: ='Havi főiskolai költségvetés'!P34 -> 16.3%
C22: Kivétek megtakarításból | D22: ='Havi főiskolai költségvetés'!P35 -> 40.8%
C23: Egyéb (gyerektartás, állami támogatás, ajándékok stb.) | D23: ='Havi főiskolai költségvetés'!P36 -> 6.1%
